fUSD/lending_fUSD_20251014
["ID","MTS","AMOUNT","RATE_DAILY","PERIOD"]
[391252308,1760437832151,-324.0,0.0002066,2]
[391252309,1760437832161,-200.0,0.00020846,2]
[391252310,1760437832170,-1838.21,0.00020955,2]
[391252311,1760437832179,-1000.0,0.000211,2]
[391252312,1760437832189,-1000.0,0.000211,2]
[391252314,1760437832198,-1012.0,0.000211,2]
[391252315,1760437832208,-958.6341607,0.00021313,2]
[391252316,1760437832219,-816.49416696,0.00021313,2]
[391252317,1760437832234,-394.93,0.00021313,2]
[391252319,1760437832252,-1549.99466217,0.00021313,2]
[391252321,1760437832262,-300.0,0.00021399,2]
[391252322,1760437832271,-300.0,0.000214,2]
[391252323,1760437832280,-151.0,0.00021411,2]
[391252324,1760437832290,-151.0,0.00021411,2]
[391252325,1760437832299,-151.0,0.00021411,2]
[391252326,1760437832308,-151.0,0.00021411,2]
[391252327,1760437832317,-151.0,0.00021411,2]
[391252328,1760437832327,-151.0,0.00021411,2]
[391252330,1760437832335,-52.31053783,0.00021411,2]
[391252332,1760437832346,-98.68946217,0.00021411,2]
[391252334,1760437832355,-151.0,0.00021411,2]
[391252336,1760437832364,-151.0,0.00021411,2]
[391252338,1760437832373,-151.0,0.00021411,2]
[391252340,1760437832382,-3.86553783,0.00021411,2]
[391252368,1760437838183,-147.13446217,0.00021411,2]
[391252370,1760437838192,-151.0,0.00021411,2]
[391252372,1760437838202,-151.0,0.00021411,2]
[391252374,1760437838211,-151.0,0.00021411,2]
[391252376,1760437838221,-151.0,0.00021411,2]
[391252378,1760437838230,-151.0,0.00021411,2]
[391252380,1760437838240,-302.19,0.00021422,2]
[391252382,1760437838249,-303.31,0.00021423,2]
[391252384,1760437838258,-151.68,0.00021423,2]
[391252386,1760437838267,-303.14,0.00021423,2]
[391252388,1760437838277,-300.06,0.00021423,2]
[391252390,1760437838286,-303.67,0.00021423,2]
[391252392,1760437838295,-152.25,0.00021423,2]
[391252393,1760437838304,-20.84167302,0.00021423,2]
[391252396,1760437838315,-129.97832698,0.00021423,2]
[391252398,1760437838324,-151.93,0.00021423,2]
[391252399,1760437838333,-302.1,0.00021423,2]
[391252402,1760437838343,-109.4738312,0.00021423,2]
[391252405,1760437838364,-42.8161688,0.00021423,2]
[391252406,1760437838374,-151.52,0.00021423,2]
[391252409,1760437838385,-303.08,0.00021423,2]
[391252410,1760437838394,-152.49,0.00021423,2]
[391252412,1760437838408,-150.35,0.00021423,2]
[391252414,1760437838418,-301.3,0.00021423,2]
[391252416,1760437838428,-152.9,0.00021423,2]
[391252418,1760437838437,-303.07,0.00021423,2]
[391252420,1760437838447,-305.47,0.00021423,2]
[391252422,1760437838458,-301.35,0.00021423,2]
[391252424,1760437838468,-7300.54537501,0.00021424,2]
[391252427,1760437838481,-1570.17708517,0.00021424,2]
[391252429,1760437838493,-3497.10753982,0.00021424,2]
[391252431,1760437838503,-303.86,0.00021424,2]
[391252433,1760437838513,-2582.10336286,0.00021538,2]
[391252436,1760437838535,-1431.89663714,0.00021538,2]
[391252438,1760437838544,-151.0,0.00021548,2]
[391252440,1760437838555,-694.95,0.00021551,2]
[391252442,1760437838564,-1645.146,0.00021638,2]
[391252444,1760437838573,-1154.32671,0.0002166,2]
[391252446,1760437838583,-1000.0,0.00021679,2]
[391252448,1760437838592,-2500.0,0.00021679,2]
[391252450,1760437838601,-1948.23454048,0.0002168,2]
[391252452,1760437838610,-914.87431155,0.0002168,2]
[391252454,1760437838619,-1948.23454041,0.00021691,2]
[391252456,1760437838629,-1000.0,0.00021699,2]
[391252458,1760437838638,-1948.23454041,0.00021702,2]
[391252460,1760437838648,-1948.23454041,0.00021713,2]
[391252462,1760437838660,-265.849,0.00021718,2]
[391252463,1760437838670,-1948.23454041,0.00021724,2]
[391252464,1760437838680,-1948.23454041,0.00021736,2]
[391252465,1760437838692,-1948.23454041,0.00021747,2]
[391252466,1760437838702,-1948.23454041,0.00021758,2]
[391252467,1760437838712,-834.89104221,0.00021762,2]
[391252468,1760437838722,-834.89104216,0.00021764,2]
[391252469,1760437838732,-834.89104216,0.00021766,2]
[391252470,1760437838742,-834.89104216,0.00021768,2]
[391252471,1760437838752,-1948.23454041,0.00021769,2]
[391252472,1760437838762,-834.89104216,0.0002177,2]
[391252473,1760437838772,-834.89104216,0.00021772,2]
[391252475,1760437838783,-834.89104216,0.00021774,2]
[391252477,1760437838793,-834.89104216,0.00021776,2]
[391252479,1760437838802,-834.89104216,0.00021778,2]
[391252481,1760437838812,-1000.0,0.00021779,2]
[391252483,1760437838821,-1420.43679934,0.00021779,2]
[391252485,1760437838833,-72773.39029873,0.00021779,2]
[391252487,1760437838844,-809.84849394,0.00021779,2]
[391252491,1760437838872,-335.9007783,0.00021779,2]
[391252493,1760437838887,-498.465,0.00021779,2]
[391252497,1760437838916,-2217.215,0.00021779,2]
[391252615,1760437840035,-263.73361002,0.00021779,2]
[391252619,1760437840063,-646.43512364,0.00021779,2]
[391252622,1760437840081,-11100.0,0.00021779,2]
[391252624,1760437840097,-483.818,0.00021779,2]
[391252639,1760437840226,-11039.95638785,0.00021779,2]
[391252641,1760437840237,-1310.03126215,0.00021779,2]
[391252720,1760437843236,-1616.81342869,0.00021779,2]
[391252721,1760437843249,-423.95581672,0.00021779,2]
[391252722,1760437843260,-55290.0,0.00021779,2]
[391252723,1760437843272,-32263.15370062,0.00021779,2]
[391252724,1760437843283,-172.30349208,0.0002178,2]
[391252725,1760437843294,-256.4157545,0.0002178,2]
[391252726,1760437843305,-528.83873902,0.0002178,2]
[391252727,1760437843316,-834.89104216,0.0002178,2]
[391252728,1760437843325,-1948.23454041,0.0002178,2]
[391252729,1760437843335,-264.4501722,0.0002178,2]
[391252730,1760437843347,-888.22702624,0.0002178,2]
[391252731,1760437843358,-232.04538316,0.0002178,2]
[391252732,1760437843368,-4014.0,0.00021794,2]
[391252733,1760437843379,-441.24581767,0.000218,2]
[391252734,1760437843389,-61036.3053074,0.00021862,2]
[391252735,1760437843398,-1130.8530164,0.00021862,2]
[391252736,1760437843412,-500.0,0.00021877,2]
[391252737,1760437843423,-219.59719919,0.00021877,2]
[391252738,1760437843432,-174.10327919,0.00021877,2]
[391252739,1760437843442,-500.0,0.00021877,2]
[391252740,1760437843452,-473.09478951,0.00021877,2]
[391252741,1760437843461,-435.89993581,0.00021877,2]
[391252742,1760437843472,-4628.52480443,0.00021878,2]
[391252743,1760437843484,-22233.332,0.00021878,2]
[391252744,1760437843496,-7836.67239979,0.00021878,2]
[391252745,1760437844925,-5117.80413736,0.00021778,2]
[391252746,1760437844935,-19363.20553125,0.00021878,2]
[391252747,1760437845096,-321.39943934,0.00021573,2]
[391252769,1760437846035,-2866.13011564,0.00021573,2]
[391252770,1760437846048,-490084.98438763,0.00021878,2]
[391252771,1760437846087,-3848.34450002,0.00021878,2]
[391252772,1760437846099,-343.8770406,0.00021878,2]
[391252773,1760437846143,-4571.29042978,0.00021878,2]
[391252774,1760437846218,-772.8,0.00021878,2]
[391252775,1760437846274,-298.9199995,0.00021878,2]
[391252835,1760438041808,1600.0,0.00025857,120]
[391252840,1760438652547,436.7,0.00012,2]
[391252876,1760438921101,409.359376,0.0002739,120]
[391252891,1760439032194,-500.0,0.000154,2]
[391252892,1760439032204,-516.30573189,0.00015425,2]
[391252893,1760439032213,-2500.0,0.0001545,2]
[391252894,1760439032222,-500.0,0.000155,3]
[391252895,1760439032231,-218.64835202,0.00016438,2]
[391252896,1760439032241,-735.21497803,0.00016438,2]
[391252897,1760439032250,-186.87766572,0.00016839,2]
[391252898,1760439032259,-300.0,0.00016936,2]
[391252899,1760439032268,-1200.0,0.00016936,2]
[391252900,1760439032277,-1200.0,0.00016937,2]
[391252901,1760439032286,-150.99,0.00016937,2]
[391252902,1760439032295,-999.99,0.00016937,2]
[391252903,1760439032304,-9999.99,0.00016937,2]
[391252904,1760439032313,-550.0,0.00016939,2]
[391252905,1760439032322,-865.17,0.00016939,2]
[391252906,1760439032331,-308.58611536,0.00016939,2]
[391252907,1760439032343,-1137.32388464,0.00016939,2]
[391252908,1760439032353,-150.99,0.00016939,2]
[391252909,1760439032362,-45731.52959116,0.00016939,2]
[391252911,1760439032374,-3294.05040884,0.00016939,2]
[391252913,1760439032383,-726.3,0.00016939,2]
[391252915,1760439032393,-4682.42052721,0.00016939,2]
[391252917,1760439032415,-563.89,0.00016939,2]
[391252919,1760439032428,-2682.41029886,0.00016939,2]
[391252923,1760439032457,-2071.26917393,0.00016939,2]
[391252925,1760439032466,-1779.14730512,0.00016939,2]
[391252927,1760439032481,-4535.88571281,0.00016939,2]
[391253103,1760439038104,-819.36355942,0.00016939,2]
[391253104,1760439038115,-2292.86800869,0.00016939,2]
[391253105,1760439038211,-572.72541396,0.00016939,2]
[391253106,1760439038221,-532.77458604,0.00016939,2]
[391253107,1760439038266,-9467.21541396,0.00016939,2]
[391253108,1760439038276,-286.97171053,0.0001694,2]
[391253109,1760439038286,-300.0,0.0001694,2]
[391253110,1760439038295,-1583.23,0.0001694,2]
[391253111,1760439038304,-9999.99,0.0001694,2]
[391253112,1760439038313,-1527.24,0.0001694,2]
[391253113,1760439038322,-9999.99,0.0001694,2]
[391253114,1760439038331,-150.0,0.0001694,2]
[391253115,1760439038340,-195.0,0.0001694,2]
[391253116,1760439038350,-300.0,0.0001694,2]
[391253117,1760439038359,-2500.0,0.0001694,2]
[391253118,1760439038369,-2000.0,0.0001694,2]
[391253119,1760439038378,-250.0,0.00017,2]
[391253120,1760439038387,-935.0,0.0001804,2]
[391253121,1760439038402,-296.4,0.00018437,2]
[391253122,1760439038411,-201.05,0.00018531,2]
[391253123,1760439038421,-1680.0,0.00018591,2]
[391253124,1760439038433,-2000.0,0.00018741,2]
[391253125,1760439038443,-500.0,0.00019028,2]
[391253126,1760439038453,-500.0,0.00019028,2]
[391253127,1760439038463,-535.2291939,0.00019028,2]
[391253128,1760439038475,-2467.1,0.00019029,2]
[391253130,1760439038485,-1004.0,0.00019209,2]
[391253132,1760439038494,-201.05,0.00019226,2]
[391253134,1760439038503,-167.3,0.00019646,2]
[391253136,1760439038512,-201.05,0.00019921,2]
[391253138,1760439038521,-2351.0,0.00020408,2]
[391253140,1760439038531,-666.0,0.00020513,3]
[391253142,1760439038540,-17857.89,0.00020551,2]
[391253144,1760439038553,-1537.4159,0.00020579,2]
[391253146,1760439038562,-2500.0,0.00020579,2]
[391253149,1760439038572,-201.05,0.00020616,2]
[391253151,1760439038582,-150.0,0.0002063,2]
[391253153,1760439038591,-151.0,0.00020667,2]
[391253155,1760439038600,-200.0,0.00020667,2]
[391253157,1760439038609,-151.0,0.00020667,2]
[391253159,1760439038619,-151.0,0.00020667,2]
[391253161,1760439038628,-151.0,0.00020667,2]
[391253163,1760439038638,-158.32181472,0.00020667,2]
[391253165,1760439038647,-151.0,0.00020667,2]
[391253167,1760439038657,-151.0,0.00020667,2]
[391253169,1760439038666,-151.0,0.00020667,2]
[391253171,1760439038678,-151.0,0.00020667,2]
[391253173,1760439038687,-151.0,0.00020667,2]
[391253175,1760439038697,-151.0,0.00020667,2]
[391253177,1760439038706,-200.0,0.00020667,2]
[391253179,1760439038715,-151.0,0.00020667,2]
[391253181,1760439038724,-151.0,0.00020667,2]
[391253183,1760439038734,-151.0,0.00020667,2]
[391253185,1760439038743,-214.77150142,0.00020667,2]
[391253187,1760439038752,-200.0,0.00020667,2]
[391253189,1760439038761,-500.0,0.00020667,2]
[391253191,1760439038770,-500.0,0.00020667,2]
[391253193,1760439038779,-500.0,0.00020667,2]
[391253195,1760439038789,-500.0,0.00020667,2]
[391253197,1760439038797,-182.66312407,0.00020667,2]
[391253199,1760439038807,-607.19,0.00020679,2]
[391253201,1760439038816,-1600.0,0.00020685,2]
[391253203,1760439038825,-501.47355478,0.00020797,2]
[391253205,1760439038834,-2038.69316432,0.00020846,2]
[391253207,1760439038843,-841.02300233,0.00020941,2]
[391253209,1760439038852,-322.6107,0.00020957,2]
[391253211,1760439038861,-151.0,0.00020957,2]
[391253213,1760439038871,-2000.0,0.00020957,2]
[391253215,1760439038880,-2000.0,0.00020957,2]
[391253217,1760439038890,-2000.0,0.00020957,2]
[391253219,1760439038900,-2000.0,0.00020957,2]
[391253221,1760439038910,-2000.0,0.00020957,2]
[391253223,1760439038920,-2000.0,0.00020957,2]
[391253225,1760439038931,-2000.0,0.00020957,2]
[391253227,1760439038941,-2000.0,0.00020957,2]
[391253229,1760439038950,-1233.00554659,0.00020957,2]
[391253231,1760439038959,-2000.0,0.00020957,2]
[391253233,1760439038968,-500.0,0.00020957,2]
[391253235,1760439038978,-2000.0,0.00020957,2]
[391253237,1760439038987,-521.97501924,0.00020957,2]
[391253239,1760439038996,-1000.0,0.00020957,2]
[391253241,1760439039006,-2000.0,0.00020957,2]
[391253243,1760439039015,-2000.0,0.00020957,2]
[391253245,1760439039024,-1000.0,0.00020957,2]
[391253247,1760439039033,-1000.0,0.00020957,2]
[391253249,1760439039042,-1000.0,0.00020957,2]
[391253251,1760439039055,-2000.0,0.00020957,2]
[391253253,1760439039064,-1000.0,0.00020957,2]
[391253255,1760439039074,-1000.0,0.00020957,2]
[391253257,1760439039084,-2000.0,0.00020957,2]
[391253259,1760439039095,-1028.06201743,0.00020957,2]
[391253261,1760439039104,-1033.42555447,0.00020957,2]
[391253263,1760439039113,-2000.0,0.00020957,2]
[391253265,1760439039122,-298.7352931,0.00020957,2]
[391253267,1760439039131,-9552.16786547,0.00020957,2]
[391253269,1760439039141,-500.0,0.00020957,2]
[391253270,1760439039150,-500.0,0.00020957,2]
[391253272,1760439039160,-2000.0,0.00020957,2]
[391253275,1760439039170,-429.83992473,0.00020957,2]
[391253277,1760439039181,-151.0,0.00020957,2]
[391253279,1760439039190,-721.12765535,0.00020957,2]
[391253281,1760439039199,-277.35679052,0.00020957,2]
[391253282,1760439039209,-2038.69316432,0.00020979,2]
[391253285,1760439039218,-9905.5980765,0.00021012,2]
[391253286,1760439039228,-694.95,0.00021041,2]
[391253289,1760439039237,-2425.22,0.00021057,2]
[391253291,1760439039247,-9857.07178931,0.00021067,2]
[391253293,1760439039256,-174.19,0.00021068,2]
[391253295,1760439039265,-169.26,0.00021068,2]
[391253297,1760439039274,-351.02,0.00021068,2]
[391253298,1760439039283,-194.57,0.00021068,2]
[391253300,1760439039292,-1092.5,0.00021068,2]
[391253302,1760439039301,-300.0,0.00021068,2]
[391253304,1760439039310,-150.0,0.00021068,2]
[391253306,1760439039320,-168.17,0.00021068,2]
[391253308,1760439039329,-177.14,0.00021068,2]
[391253310,1760439039339,-175.87,0.00021068,2]
[391253312,1760439039349,-300.0,0.00021068,2]
[391253314,1760439039358,-826.46,0.00021068,2]
[391253316,1760439039367,-1343.41,0.00021075,4]
[391253318,1760439039377,-2000.0,0.000211,2]
[391253320,1760439039387,-2038.69316432,0.00021113,2]
[391253322,1760439039400,-200.0,0.00021215,2]
[391253324,1760439039414,-2038.69316432,0.00021246,2]
[391253327,1760439039424,-201.05,0.00021311,2]
[391253328,1760439039436,-3124.16189013,0.00021313,2]
[391253330,1760439039447,-2038.69316432,0.0002138,2]
[391253332,1760439039456,-1000.0,0.000214,7]
[391253334,1760439039465,-434.75588422,0.00021426,2]
[391253336,1760439039475,-1879.0,0.0002147,2]
[391253338,1760439039489,-4777.50907473,0.000215,2]
[391253340,1760439039499,-2000.0,0.000215,7]
[391253342,1760439039508,-151.0,0.00021505,2]
[391253344,1760439039519,-2038.69316432,0.00021513,2]
[391253346,1760439039528,-241.50277341,0.00021573,2]
[391253348,1760439039537,-317.70541395,0.00021579,2]
[391253350,1760439039546,-151.0,0.00021579,7]
[391253352,1760439039556,-631.318976,0.00021579,7]
[391253354,1760439039565,-151.0,0.00021579,7]
[391253356,1760439039574,-631.318976,0.00021579,7]
[391253358,1760439039584,-631.318976,0.00021579,7]
[391253360,1760439039594,-631.318976,0.00021579,7]
[391253378,1760439039760,-151.0,0.00021579,7]
[391253379,1760439039779,-151.0,0.00021579,7]
[391253380,1760439039790,-151.0,0.00021579,7]
[391253381,1760439039799,-250.128082,0.00021579,7]
[391253382,1760439039808,-151.0,0.00021579,7]
[391253383,1760439039817,-250.128082,0.00021579,7]
[391253384,1760439039828,-151.0,0.00021579,7]
[391253385,1760439039837,-151.0,0.00021579,7]
[391253386,1760439039846,-151.0,0.00021579,7]
[391253388,1760439039855,-151.0,0.00021579,7]
[391253390,1760439039865,-250.128082,0.00021579,7]
[391253392,1760439039874,-151.0,0.00021579,7]
[391253394,1760439039883,-152.418242,0.00021579,7]
[391253396,1760439039894,-151.0,0.00021579,7]
[391253398,1760439039903,-151.0,0.00021579,7]
[391253400,1760439039912,-250.128082,0.00021579,7]
[391253402,1760439039922,-151.0,0.00021579,7]
[391253404,1760439039934,-151.0,0.00021579,7]
[391253406,1760439039943,-151.0,0.00021579,7]
[391253408,1760439039952,-151.0,0.00021579,7]
[391253410,1760439039961,-151.0,0.00021579,7]
[391253412,1760439039971,-154.706527,0.00021579,7]
[391253413,1760439039980,-151.0,0.00021579,7]
[391253416,1760439039990,-151.0,0.00021579,7]
[391253417,1760439039999,-151.0,0.00021579,7]
[391253419,1760439040008,-151.0,0.00021579,7]
[391253421,1760439040019,-151.0,0.00021579,7]
[391253422,1760439040029,-169.868884,0.00021579,7]
[391253423,1760439040038,-151.0,0.00021579,7]
[391253425,1760439040048,-169.868884,0.00021579,7]
[391253426,1760439040058,-169.868884,0.00021579,7]
[391253427,1760439040068,-151.0,0.00021579,7]
[391253428,1760439040078,-169.868884,0.00021579,7]
[391253429,1760439040087,-151.0,0.00021579,7]
[391253430,1760439040097,-151.0,0.00021579,7]
[391253431,1760439040106,-151.0,0.00021579,7]
[391253432,1760439040115,-151.0,0.00021579,7]
[391253433,1760439040125,-151.0,0.00021579,7]
[391253434,1760439040134,-166.637444,0.00021579,7]
[391253435,1760439040143,-151.0,0.00021579,7]
[391253436,1760439040153,-152.293764,0.00021579,7]
[391253437,1760439040162,-151.0,0.00021579,7]
[391253438,1760439040171,-151.0,0.00021579,7]
[391253439,1760439040183,-151.0,0.00021579,7]
[391253440,1760439040192,-155.609252,0.00021579,7]
[391253441,1760439040202,-151.0,0.00021579,7]
[391253442,1760439040211,-314.169289,0.00021579,7]
[391253443,1760439040221,-314.169289,0.00021579,7]
[391253444,1760439040230,-314.169289,0.00021579,7]
[391253445,1760439040239,-314.169289,0.00021579,7]
[391253446,1760439040248,-154.170125,0.00021579,7]
[391253447,1760439040258,-151.0,0.00021579,7]
[391253448,1760439040267,-151.0,0.00021579,7]
[391253449,1760439040276,-152.698774,0.00021579,7]
[391253450,1760439040285,-151.0,0.00021579,7]
[391253451,1760439040294,-151.0,0.00021579,7]
[391253452,1760439040303,-151.0,0.00021579,7]
[391253453,1760439040313,-151.0,0.00021579,7]
[391253454,1760439040322,-3915.09681182,0.00021579,2]
[391253455,1760439040331,-151.0,0.00021579,7]
[391253456,1760439040340,-151.0,0.00021579,7]
[391253457,1760439040350,-151.75332,0.00021579,7]
[391253458,1760439040359,-151.0,0.00021579,7]
[391253459,1760439040368,-171.400083,0.00021579,7]
[391253460,1760439040377,-151.0,0.00021579,7]
[391253461,1760439040388,-151.0,0.00021579,2]
[391253462,1760439040401,-151.0,0.00021579,7]
[391253463,1760439040410,-151.0,0.00021579,7]
[391253464,1760439040419,-151.0,0.00021579,7]
[391253465,1760439040431,-151.0,0.00021579,7]
[391253466,1760439040442,-151.0,0.00021579,7]
[391253468,1760439040452,-157.919603,0.00021579,7]
[391253470,1760439040461,-151.0,0.00021579,7]
[391253472,1760439040471,-395.985823,0.00021579,7]
[391253474,1760439040481,-151.0,0.00021579,7]
[391253476,1760439040490,-152.443131,0.00021579,7]
[391253477,1760439040503,-395.985823,0.00021579,7]
[391253478,1760439040511,-395.985823,0.00021579,7]
[391253479,1760439040520,-395.985823,0.00021579,7]
[391253480,1760439040530,-152.751212,0.00021579,7]
[391253481,1760439040539,-151.0,0.00021579,7]
[391253482,1760439040547,-151.0,0.00021579,7]
[391253483,1760439040557,-151.0,0.00021579,7]
[391253484,1760439040566,-151.0,0.00021579,7]
[391253485,1760439040575,-982.86319781,0.00021579,3]
[391253486,1760439040584,-1000.0,0.00021579,2]
[391253487,1760439040593,-3000.0,0.000216,7]
[391253488,1760439040602,-3915.09681178,0.00021601,2]
[391253489,1760439040611,-3915.09681178,0.00021624,2]
[391253490,1760439040620,-3915.09681178,0.00021646,2]
[391253491,1760439040630,-2038.69316432,0.00021647,2]
[391253492,1760439040639,-1252.97929,0.0002166,2]
[391253493,1760439040648,-3915.09681178,0.00021668,2]
[391253494,1760439040657,-155.0,0.00021678,2]
[391253495,1760439040667,-151.0,0.00021678,7]
[391253496,1760439040675,-2335.873694,0.00021678,7]
[391253497,1760439040687,-151.0,0.00021678,7]
[391253498,1760439040696,-2335.873694,0.00021678,7]
[391253499,1760439040705,-151.0,0.00021678,7]
[391253500,1760439040715,-151.0,0.00021678,7]
[391253501,1760439040724,-151.0,0.00021678,7]
[391253502,1760439040733,-2335.873694,0.00021678,7]
[391253503,1760439040743,-151.0,0.00021678,7]
[391253504,1760439040752,-158.014122,0.00021678,7]
[391253505,1760439040762,-151.0,0.00021678,7]
[391253506,1760439040771,-2335.873694,0.00021678,7]
[391253507,1760439040780,-151.0,0.00021678,7]
[391253508,1760439040789,-151.0,0.00021678,7]
[391253509,1760439040799,-151.0,0.00021678,7]
[391253510,1760439040808,-151.0,0.00021678,7]
[391253511,1760439040817,-153.71803943,0.00021678,2]
[391253512,1760439040826,-500.0,0.00021678,2]
[391253513,1760439040836,-500.0,0.00021678,2]
[391253514,1760439040845,-224.40451744,0.00021678,2]
[391253515,1760439040855,-500.0,0.00021678,2]
[391253516,1760439040865,-324.91800613,0.00021678,2]
[391253517,1760439040874,-151.0,0.00021679,7]
[391253518,1760439040885,-151.0,0.00021679,7]
[391253519,1760439040894,-151.0,0.00021679,7]
[391253520,1760439040904,-151.0,0.00021679,7]
[391253521,1760439040914,-152.938652,0.00021679,7]
[391253522,1760439040923,-151.555276,0.00021679,7]
[391253523,1760439040937,-151.0,0.00021679,7]
[391253524,1760439040947,-151.0,0.00021679,7]
[391253525,1760439040957,-151.0,0.00021679,7]
[391253526,1760439040968,-151.0,0.00021679,7]
[391253527,1760439040978,-153.6172,0.00021679,7]
[391253528,1760439040988,-151.0,0.00021679,7]
[391253529,1760439040998,-154.884451,0.00021679,7]
[391253530,1760439041008,-151.0,0.00021679,7]
[391253531,1760439041018,-151.0,0.00021679,7]
[391253532,1760439041028,-151.0,0.00021679,7]
[391253533,1760439041038,-151.0,0.00021679,7]
[391253534,1760439041047,-151.0,0.00021679,7]
[391253535,1760439041057,-151.0,0.00021679,7]
[391253536,1760439041066,-151.0,0.00021679,7]
[391253537,1760439041075,-154.91124,0.00021679,7]
[391253538,1760439041084,-151.0,0.00021679,7]
[391253539,1760439041093,-207.599366,0.00021679,7]
[391253540,1760439041102,-151.0,0.00021679,7]
[391253541,1760439041111,-151.0,0.00021679,7]
[391253542,1760439041120,-151.0,0.00021679,7]
[391253543,1760439041129,-151.0,0.00021679,7]
[391253544,1760439041137,-151.0,0.00021679,7]
[391253545,1760439041146,-151.0,0.00021679,7]
[391253546,1760439041155,-151.0,0.00021679,7]
[391253547,1760439041164,-151.0,0.00021679,7]
[391253548,1760439041173,-151.0,0.00021679,7]
[391253549,1760439041185,-151.0,0.00021679,7]
[391253550,1760439041194,-161.717684,0.00021679,7]
[391253551,1760439041203,-151.0,0.00021679,7]
[391253552,1760439041212,-151.0,0.00021679,7]
[391253553,1760439041222,-151.0,0.00021679,7]
[391253554,1760439041231,-151.0,0.00021679,7]
[391253555,1760439041240,-152.263787,0.00021679,7]
[391253556,1760439041249,-152.077233,0.00021679,7]
[391253557,1760439041258,-350.712878,0.00021679,7]
[391253558,1760439041267,-350.712878,0.00021679,7]
[391253559,1760439041276,-350.712878,0.00021679,7]
[391253560,1760439041285,-152.090559,0.00021679,7]
[391253561,1760439041294,-151.0,0.00021679,7]
[391253562,1760439041303,-350.712878,0.00021679,7]
[391253563,1760439041312,-151.0,0.00021679,7]
[391253564,1760439041321,-151.0,0.00021679,7]
[391253565,1760439041330,-151.670529,0.00021679,7]
[391253566,1760439041339,-151.0,0.00021679,7]
[391253567,1760439041349,-151.0,0.00021679,7]
[391253568,1760439041358,-159.43912,0.00021679,7]
[391253569,1760439041368,-151.0,0.00021679,7]
[391253570,1760439041377,-151.0,0.00021679,7]
[391253571,1760439041386,-151.0,0.00021679,7]
[391253572,1760439041396,-151.0,0.00021679,7]
[391253573,1760439041409,-151.0,0.00021679,7]
[391253574,1760439041418,-151.0,0.00021679,7]
[391253575,1760439041427,-151.0,0.00021679,7]
[391253576,1760439041439,-151.0,0.00021679,7]
[391253577,1760439041448,-151.0,0.00021679,7]
[391253578,1760439041457,-151.0,0.00021679,7]
[391253579,1760439041466,-151.0,0.00021679,7]
[391253580,1760439041476,-151.527305,0.00021679,7]
[391253581,1760439041485,-199.873248,0.00021679,7]
[391253582,1760439041493,-151.0,0.00021679,7]
[391253583,1760439041502,-151.0,0.00021679,7]
[391253584,1760439041511,-199.873248,0.00021679,7]
[391253585,1760439041520,-151.0,0.00021679,7]
[391253586,1760439041529,-199.873248,0.00021679,7]
[391253587,1760439041538,-151.0,0.00021679,7]
[391253588,1760439041547,-199.873248,0.00021679,7]
[391253589,1760439041556,-151.6419,0.00021679,7]
[391253590,1760439041565,-151.0,0.00021679,7]
[391253591,1760439041574,-151.47952,0.00021679,7]
[391253592,1760439041584,-155.130941,0.00021679,7]
[391253593,1760439041593,-151.0,0.00021679,7]
[391253594,1760439041603,-151.0,0.00021679,7]
[391253595,1760439041612,-151.0,0.00021679,7]